fUSD/lending_fUSD_20240626
["ID","MTS","AMOUNT","RATE_DAILY","PERIOD"]
[330427446,1719382232793,-698.76082,0.00021521,2]
[330427447,1719382232802,-212.400839,0.00021521,2]
[330427448,1719382232813,-465.840546,0.00021521,2]
[330427449,1719382232823,-624.96334738,0.00021541,2]
[330427450,1719382232833,-151.0,0.00021597,2]
[330427451,1719382232843,-7649.46489346,0.0002163,2]
[330427452,1719382232853,-153.39,0.00021644,2]
[330427453,1719382232863,-523.42,0.00021644,2]
[330427454,1719382232873,-171.56,0.00021644,2]
[330427455,1719382232883,-153.22,0.00021644,2]
[330427456,1719382232893,-624.96334738,0.00021733,2]
[330427457,1719382232903,-698.76082,0.00021787,2]
[330427458,1719382232913,-212.400839,0.00021787,2]
[330427459,1719382232922,-465.840546,0.00021787,2]
[330427460,1719382232933,-316.07348908,0.00021817,2]
[330427461,1719382232943,-7649.46489346,0.0002184,2]
[330427462,1719382232952,-50335.8278722,0.0002189,3]
[330427463,1719382232962,-20609.81629668,0.000219,2]
[330427464,1719382232975,-1657.86901105,0.000219,2]
[330427469,1719382238178,-4003.62304756,0.000219,2]
[330427470,1719382238197,-408.7826365,0.000219,2]
[330427471,1719382238219,-1602.6814182,0.000219,2]
[330427472,1719382238238,-8979.20031032,0.000219,2]
[330427477,1719382238351,-5835.15829731,0.000219,2]
[330427478,1719382238370,-206902.86898238,0.000219,2]
[330427480,1719382238385,-177.19,0.00021918,2]
[330427481,1719382238400,-1166.92598587,0.00021925,2]
[330427482,1719382238415,-624.96334738,0.00021926,2]
[330427483,1719382238430,-150.0,0.00021944,2]
[330427484,1719382238444,-201.07820793,0.00021944,2]
[330427485,1719382238460,-1263.2464365,0.00021962,2]
[330427486,1719382238476,-262.08,0.00021963,2]
[330427487,1719382238492,-1197.0,0.00021981,2]
[330427488,1719382238508,-5170.0,0.00021981,2]
[330427489,1719382238527,-1659.0,0.00021981,2]
[330427490,1719382238543,-38180.0,0.00021981,2]
[330427491,1719382238557,-5596.00864109,0.00021988,2]
[330427492,1719382238575,-1133.92751376,0.00021989,2]
[330427493,1719382238590,-500.0,0.0002199,2]
[330427494,1719382238605,-500.0,0.0002199,2]
[330427495,1719382238619,-504.33,0.0002199,2]
[330427496,1719382238634,-807.925,0.00021991,2]
[330427497,1719382238649,-285.2375958,0.00021999,2]
[330427498,1719382238664,-624.28077392,0.00021999,2]
[330427499,1719382238680,-1115.69656,0.00022,2]
[330427500,1719382238690,-1757.94329266,0.00022005,2]
[330427501,1719382238699,-1000.0,0.00022006,2]
[330427502,1719382238709,-155.72276876,0.00022037,2]
[330427503,1719382238718,-3964.57243593,0.00022041,2]
[330427504,1719382238728,-16778.6092907,0.00022042,3]
[330427505,1719382238739,-866.90298966,0.00022047,2]
[330427506,1719382238749,-151.68,0.00022047,2]
[330427507,1719382238759,-818.3706616,0.00022048,2]
[330427508,1719382238768,-7649.46489346,0.0002205,2]
[330427509,1719382238778,-218.03958267,0.00022051,2]
[330427510,1719382238787,-698.76082,0.00022052,2]
[330427511,1719382238797,-212.400839,0.00022052,2]
[330427512,1719382238809,-465.840546,0.00022052,2]
[330427513,1719382239307,-253.90432169,0.00022071,2]
[330427514,1719382239349,-235.17702148,0.00022072,2]
[330427515,1719382239383,-346.07679139,0.00022081,2]
[330427516,1719382239409,-166.82,0.00022082,2]
[330427517,1719382239419,-158.33,0.00022082,2]
[330427518,1719382239428,-150.85,0.00022082,2]
[330427519,1719382239438,-152.88,0.00022082,2]
[330427520,1719382239448,-155.0,0.00022087,2]
[330427521,1719382239457,-155.61182952,0.00022087,2]
[330427522,1719382239468,-166.66666668,0.00022088,2]
[330427523,1719382239477,-337.09590134,0.00022089,2]
[330427524,1719382239489,-155.30446939,0.00022091,2]
[330427525,1719382239498,-311.15090226,0.00022092,2]
[330427526,1719382239507,-159.83279036,0.00022092,2]
[330427527,1719382239518,-217.75356956,0.00022092,2]
[330427528,1719382239532,-155.0,0.00022092,2]
[330427529,1719382239541,-155.28594721,0.00022093,2]
[330427530,1719382239551,-152.2,0.00022095,2]
[330427531,1719382239560,-151.0,0.00022105,2]
[330427532,1719382239571,-175.29198333,0.00022113,2]
[330427533,1719382239581,-624.96334738,0.00022119,2]
[330427534,1719382239591,-289.03682659,0.00022178,2]
[330427535,1719382239602,-155.71951141,0.00022179,2]
[330427536,1719382239612,-528.46212522,0.00022183,2]
[330427537,1719382239621,-679.18724822,0.0002219,2]
[330427538,1719382239631,-615.29,0.00022195,2]
[330427539,1719382239640,-205.74,0.00022213,2]
[330427540,1719382239650,-155.71951141,0.00022217,2]
[330427541,1719382239659,-528.46212522,0.00022252,2]
[330427542,1719382239669,-7649.46489346,0.0002226,2]
[330427543,1719382239678,-166.66666667,0.00022268,2]
[330427544,1719382239687,-679.18724822,0.00022273,2]
[330427545,1719382239697,-155.71951141,0.0002229,2]
[330427546,1719382239707,-447.85914817,0.00022298,2]
[330427547,1719382239716,-528.46212522,0.00022299,2]
[330427548,1719382239726,-1250.91356,0.000223,2]
[330427549,1719382239736,-346.02534229,0.000223,2]
[330427550,1719382239745,-151.00055672,0.00022303,2]
[330427551,1719382239754,-152.93709457,0.00022304,2]
[330427552,1719382239763,-151.69,0.00022308,2]
[330427553,1719382239772,-16778.6092907,0.00022308,3]
[330427554,1719382239782,-624.96334738,0.00022312,2]
[330427555,1719382239792,-1684.25113719,0.00022316,2]
[330427556,1719382239802,-7849.92525678,0.00022318,2]
[330427557,1719382239813,-524.691152,0.00022318,2]
[330427558,1719382239823,-698.76082,0.00022318,2]
[330427559,1719382239835,-212.400839,0.00022318,2]
[330427560,1719382239845,-465.840546,0.00022318,2]
[330427561,1719382239856,-289.03682659,0.00022326,2]
[330427562,1719382239866,-316.07348908,0.00022354,2]
[330427563,1719382239876,-151.00055672,0.00022368,2]
[330427564,1719382239886,-166.66666667,0.00022381,2]
[330427565,1719382239895,-1153.0,0.00022409,2]
[330427566,1719382239905,-171.42917981,0.00022422,2]
[330427567,1719382239915,-818.3706616,0.00022424,2]
[330427568,1719382239924,-166.66666667,0.00022428,2]
[330427569,1719382239934,-155.72276876,0.0002243,2]
[330427570,1719382239944,-1684.25113719,0.0002244,2]
[330427571,1719382239953,-166.66666667,0.00022446,2]
[330427573,1719382239964,-155.72276876,0.00022449,2]
[330427574,1719382239973,-2785.72407122,0.00022453,2]
[330427575,1719382239983,-7649.46489346,0.0002247,2]
[330427576,1719382239994,-150.848698,0.00022475,2]
[330427577,1719382240004,-156.13682179,0.00022475,2]
[330427578,1719382240017,-150.0,0.00022475,2]
[330427579,1719382240027,-151.11967015,0.00022484,2]
[330427580,1719382240036,-250.0,0.00022492,2]
[330427581,1719382240046,-155.22281282,0.00022498,2]
[330427582,1719382240055,-151.00735723,0.000225,2]
[330427584,1719382240065,-169.25800514,0.00022502,2]
[330427585,1719382240074,-624.96334738,0.00022504,2]
[330427586,1719382240083,-528.46212522,0.00022506,2]
[330427587,1719382240092,-155.22281282,0.00022515,2]
[330427588,1719382240101,-918.58894012,0.00022529,2]
[330427589,1719382240110,-1684.25113719,0.0002253,2]
[330427590,1719382240120,-339.0943632,0.00022535,2]
[330427591,1719382240129,-1722.77896489,0.00022548,2]
[330427592,1719382240142,-702.12138426,0.00022548,2]
[330427593,1719382240153,-7044.69004109,0.00022548,2]
[330427594,1719382240379,-530.40960976,0.00022548,2]
[330427595,1719382240389,-151.0,0.00022548,2]
[330427596,1719382240398,-175.29198333,0.00022562,2]
[330427597,1719382240407,-155.71951141,0.00022586,2]
[330427598,1719382240417,-166.66666668,0.00022596,2]
[330427599,1719382240426,-289.03682659,0.00022607,2]
[330427600,1719382240435,-818.3706616,0.00022635,2]
[330427601,1719382240444,-175.62575415,0.00022639,2]
[330427602,1719382240454,-528.46212522,0.00022659,2]
[330427603,1719382240465,-918.0,0.00022665,2]
[330427604,1719382240475,-151.00055672,0.00022679,2]
[330427605,1719382240489,-2190.93309922,0.0002268,2]
[330427606,1719382240506,-5458.53179424,0.0002268,2]
[330427607,1719382240517,-150.98925777,0.00022687,2]
[330427608,1719382240534,-624.96334738,0.00022697,2]
[330427609,1719382240544,-1684.25113719,0.00022702,2]
[330427610,1719382240554,-339.0943632,0.00022713,2]
[330427611,1719382240568,-202.53959621,0.00022719,2]
[330427612,1719382240578,-16778.6092907,0.00022729,3]
[330427613,1719382240588,-154.13239228,0.00022737,2]
[330427614,1719382240600,-155.43924458,0.00022741,2]
[330427615,1719382240611,-1684.25113719,0.0002275,2]
[330427616,1719382240621,-1684.25113719,0.00022768,2]
[330427617,1719382240631,-2790.79320253,0.0002279,2]
[330427618,1719382240642,-174.65060844,0.0002279,2]
[330427619,1719382240651,-2096.32833613,0.0002279,2]
[330427620,1719382240661,-447.85914817,0.00022793,2]
[330427621,1719382240671,-440.2968,0.00022794,2]
[330427622,1719382240680,-175.29198333,0.00022798,2]
[330427623,1719382240690,-300.49059957,0.00022798,2]
[330427624,1719382240700,-2790.79320248,0.00022799,2]
[330427625,1719382240709,-2000.0,0.000228,7]
[330427626,1719382240719,-12065.2255179,0.000228,2]
[330427627,1719382240728,-200.0,0.00022803,2]
[330427628,1719382240740,-199.93455324,0.00022807,2]
[330427629,1719382240750,-16778.6092907,0.00022807,3]
[330427630,1719382240759,-2790.79320248,0.00022808,2]
[330427631,1719382240770,-175.29198333,0.00022812,2]
[330427632,1719382240780,-169.16642805,0.00022815,2]
[330427633,1719382240790,-1000.0,0.00022816,2]
[330427634,1719382240799,-368.59840723,0.00022816,2]
[330427635,1719382240809,-2790.79320248,0.00022817,2]
[330427636,1719382240819,-2790.79320248,0.00022826,2]
[330427637,1719382240829,-2785.72407122,0.00022832,2]
[330427638,1719382240838,-151.00735723,0.00022833,2]
[330427639,1719382240848,-2790.79320248,0.00022835,2]
[330427640,1719382240857,-161.08819227,0.00022838,2]
[330427641,1719382240867,-450.32528097,0.00022839,2]
[330427642,1719382240876,-174.65060843,0.0002284,2]
[330427643,1719382240886,-2790.79320248,0.00022845,2]
[330427644,1719382240895,-2790.79320248,0.00022854,2]
[330427645,1719382240904,-1684.25113719,0.00022858,2]
[330427646,1719382240914,-532.91398684,0.0002286,2]
[330427647,1719382240923,-500.0,0.0002286,2]
[330427648,1719382240932,-16778.6092907,0.00022861,3]
[330427649,1719382240942,-16778.6092907,0.00022862,3]
[330427650,1719382240952,-2790.79320248,0.00022863,2]
[330427651,1719382240961,-523.50513825,0.0002287,2]
[330427652,1719382240971,-1012.79423779,0.00022871,2]
[330427653,1719382240980,-2790.79320248,0.00022872,2]
[330427654,1719382240990,-155.0,0.00022874,2]
[330427655,1719382240999,-155.0,0.00022874,2]
[330427656,1719382241007,-447.85914817,0.00022875,2]
[330427657,1719382241017,-219.9,0.00022877,3]
[330427658,1719382241027,-7621.92635422,0.0002288,2]
[330427659,1719382241037,-50335.8278722,0.0002288,3]
[330427660,1719382241046,-2790.79320248,0.00022881,2]
[330427661,1719382241055,-2908.08578217,0.00022883,2]
[330427662,1719382241065,-365.41160562,0.00022889,2]
[330427663,1719382241074,-155.0,0.00022889,2]
[330427664,1719382241083,-209.96997035,0.00022889,2]
[330427665,1719382241092,-2790.79320248,0.0002289,2]
[330427666,1719382241101,-174.65060843,0.0002289,2]
[330427667,1719382241111,-624.96334738,0.0002289,2]
[330427668,1719382241120,-316.07348908,0.0002289,2]
[330427669,1719382241129,-1346.10527844,0.0002289,2]
[330427670,1719382241139,-4828.51434642,0.0002289,2]
[330427671,1719382241148,-15187.17463176,0.0002289,2]
[330427672,1719382241158,-193.24246027,0.0002289,2]
[330427673,1719382241167,-7649.46489346,0.0002289,2]
[330427674,1719382241176,-237.23336779,0.0002289,2]
[330427675,1719382241186,-152.0,0.0002289,2]
[330427676,1719382241195,-209.076,0.0002289,2]
[330427677,1719382241204,-153.832,0.0002289,2]
[330427678,1719382241213,-150.753,0.0002289,2]
[330427679,1719382241223,-244.325,0.0002289,2]
[330427680,1719382241233,-242.553,0.0002289,2]
[330427681,1719382241244,-157.153,0.0002289,2]
[330427682,1719382241252,-170.36,0.0002289,2]
[330427683,1719382241262,-150.169,0.0002289,2]
[330427684,1719382241271,-155.376,0.0002289,2]
[330427685,1719382241280,-150.137,0.0002289,2]
[330427686,1719382241289,-150.0,0.0002289,2]
[330427687,1719382241299,-150.357,0.0002289,2]
[330427688,1719382241308,-1830.0,0.0002289,2]
[330427689,1719382241318,-1272.0,0.0002289,2]
[330427690,1719382241327,-1654.0,0.0002289,2]
[330427691,1719382241336,-359.0,0.0002289,2]
[330427692,1719382241346,-166.0,0.0002289,2]
[330427693,1719382241355,-617.0,0.0002289,2]
[330427694,1719382241365,-448.0,0.0002289,2]
[330427695,1719382241374,-443.0,0.0002289,2]
[330427696,1719382241384,-2411.0,0.0002289,2]
[330427697,1719382241393,-1304.0,0.0002289,2]
[330427698,1719382241402,-547.0,0.0002289,2]
[330427699,1719382241412,-1983.0,0.0002289,2]
[330427700,1719382241421,-3200.0,0.0002289,2]
[330427701,1719382241431,-151.0,0.00022894,7]
[330427702,1719382241440,-151.0,0.00022894,7]
[330427703,1719382241449,-277.585983,0.00022894,7]
[330427704,1719382241459,-277.585983,0.00022894,7]
[330427705,1719382241471,-324.0,0.00022894,7]
[330427706,1719382241481,-324.0,0.00022894,7]
[330427707,1719382241492,-151.0,0.00022894,7]
[330427708,1719382241502,-155.826259,0.00022894,7]
[330427709,1719382241512,-155.826259,0.00022894,7]
[330427710,1719382241526,-151.0,0.00022894,7]
[330427711,1719382241536,-151.0,0.00022894,7]
[330427712,1719382241545,-191.352449,0.00022894,7]
[330427713,1719382241555,-151.0,0.00022894,7]
[330427714,1719382241567,-151.0,0.00022894,7]
[330427715,1719382241577,-151.0,0.00022894,7]
[330427716,1719382241586,-151.0,0.00022894,7]
[330427717,1719382241596,-151.0,0.00022894,7]
[330427718,1719382241605,-151.0,0.00022894,7]
[330427719,1719382241615,-220.983817,0.00022894,7]
[330427720,1719382241625,-220.983817,0.00022894,7]
[330427721,1719382241634,-257.0,0.000229,2]
[330427722,1719382241644,-514.0,0.000229,2]
[330427723,1719382241653,-2245.32077655,0.000229,2]
[330427724,1719382241663,-490.0,0.000229,5]
[330427725,1719382241672,-190.0,0.000229,5]
[330427726,1719382241681,-314.48,0.000229,2]
[330427727,1719382241691,-175.29198333,0.00022903,2]
[330427728,1719382241700,-154.77375335,0.00022949,2]
[330427729,1719382241710,-155.71951141,0.00022962,2]
[330427730,1719382241719,-16778.6092907,0.00022962,3]
[330427731,1719382241729,-155.0,0.00022962,2]
[330427732,1719382241738,-339.0943632,0.00022966,2]
[330427733,1719382241747,-16778.6092907,0.0002297,3]
[330427734,1719382241757,-16778.6092907,0.0002297,3]
[330427735,1719382241767,-157.882933,0.00022972,7]
[330427736,1719382241776,-180.178811,0.00022972,7]
[330427737,1719382241786,-180.178811,0.00022972,7]
[330427738,1719382241795,-151.0,0.00022972,7]
[330427739,1719382241805,-455.942573,0.00022972,7]
[330427740,1719382241814,-151.0,0.00022972,7]
[330427741,1719382241824,-455.942573,0.00022972,7]
[330427742,1719382241835,-151.0,0.00022972,7]
[330427743,1719382241845,-151.0,0.00022972,7]
[330427744,1719382241855,-151.0,0.00022972,7]
[330427745,1719382241865,-151.0,0.00022972,7]
[330427746,1719382241874,-151.0,0.00022972,7]
[330427747,1719382241884,-151.0,0.00022972,7]
[330427748,1719382241894,-151.0,0.00022972,7]
[330427749,1719382241903,-151.0,0.00022972,7]
[330427750,1719382241912,-354.728609,0.00022972,7]
[330427751,1719382241921,-151.0,0.00022972,7]
[330427752,1719382241932,-354.728609,0.00022972,7]
[330427753,1719382241943,-151.0,0.00022972,7]
[330427754,1719382241953,-151.0,0.00022972,7]
[330427755,1719382241963,-151.0,0.00022972,7]
[330427756,1719382241972,-2816.640127,0.00022972,7]
[330427757,1719382241982,-634.720546,0.00022972,7]
[330427758,1719382241994,-157.090159,0.00022972,7]
[330427759,1719382242003,-2816.640127,0.00022972,7]
[330427760,1719382242012,-634.720546,0.00022972,7]
[330427761,1719382242021,-810.546023,0.00022972,7]
[330427762,1719382242031,-810.546023,0.00022972,7]
[330427763,1719382242041,-719.154374,0.00022972,7]
[330427764,1719382242050,-233.935827,0.00022972,7]
[330427765,1719382242060,-719.154374,0.00022972,7]
[330427766,1719382242069,-233.935827,0.00022972,7]
[330427767,1719382242078,-232.613712,0.00022972,7]
[330427768,1719382242087,-232.613712,0.00022972,7]
[330427769,1719382242097,-151.411992,0.00022972,7]
[330427770,1719382242106,-153.425854,0.00022972,7]
[330427771,1719382242115,-151.411992,0.00022972,7]
[330427772,1719382242124,-2103.764551,0.00022972,7]
[330427773,1719382242133,-153.425854,0.00022972,7]
[330427774,1719382242142,-2103.764551,0.00022972,7]
[330427775,1719382242151,-589.74225262,0.00022972,2]
[330427776,1719382242161,-43431.52534997,0.00022972,2]
[330427777,1719382242170,-305.03138903,0.00022975,2]
[330427778,1719382242179,-339.34174154,0.00022975,2]
[330427779,1719382242188,-4454.52980697,0.00022975,2]
[330427780,1719382242198,-150.98925777,0.00022979,2]
[330427781,1719382242207,-67114.4371629,0.00022979,3]
[330427782,1719382242217,-100671.655744,0.0002298,3]
[330427783,1719382242226,-219.5,0.0002298,30]
[330427784,1719382242235,-151.0,0.0002298,7]
[330427785,1719382242245,-151.0,0.0002298,7]
[330427786,1719382242254,-151.0,0.0002298,7]
[330427787,1719382242264,-151.0,0.0002298,7]
[330427788,1719382242273,-151.0,0.0002298,7]
[330427789,1719382242284,-151.0,0.0002298,7]
[330427790,1719382242295,-151.0,0.0002298,7]
[330427791,1719382242305,-151.0,0.0002298,7]
[330427792,1719382242315,-151.0,0.0002298,7]
[330427793,1719382242325,-151.0,0.0002298,7]
[330427794,1719382242335,-161.91239,0.0002298,7]
[330427796,1719382242344,-151.0,0.0002298,7]
[330427798,1719382242353,-161.91239,0.0002298,7]
[330427799,1719382242363,-151.0,0.0002298,7]
[330427800,1719382242372,-304.439875,0.0002298,7]
[330427801,1719382242382,-304.439875,0.0002298,7]
[330427802,1719382242392,-151.0,0.0002298,7]
[330427803,1719382242402,-637.979729,0.0002298,7]
[330427804,1719382242412,-637.979729,0.0002298,7]
[330427805,1719382242422,-591.666732,0.0002298,7]
[330427806,1719382242431,-591.666732,0.0002298,7]
[330427807,1719382242441,-316.641582,0.0002298,7]
[330427808,1719382242451,-1292.523767,0.0002298,7]
[330427809,1719382242460,-151.0,0.0002298,7]
[330427810,1719382242470,-1292.523767,0.0002298,7]
[330427811,1719382242480,-316.641582,0.0002298,7]
[330427812,1719382242491,-151.0,0.0002298,7]
[330427813,1719382242501,-151.0,0.0002298,7]
[330427814,1719382242511,-4937.3773312,0.0002298,2]
[330427815,1719382242524,-151.0,0.0002298,7]
[330427816,1719382242535,-151.0,0.0002298,7]
[330427817,1719382242544,-2302.3770119,0.0002298,2]
[330427818,1719382242554,-428.3619126,0.0002298,2]
[330427819,1719382242565,-545.8616288,0.0002298,2]
[330427820,1719382242575,-1679.1355966,0.0002298,2]
[330427821,1719382242584,-24007.77034626,0.0002298,2]
[330427822,1719382242594,-202.53959621,0.0002298,2]
[330427823,1719382242606,-296.61411446,0.00022982,2]
[330427824,1719382242616,-10054.3483149,0.00022983,2]
[330427825,1719382242626,-152.89860748,0.00022988,2]
[330427826,1719382242636,-150.0,0.00022989,2]
[330427827,1719382242645,-300.0,0.00022989,2]
[330427828,1719382242655,-450.0,0.00022989,2]
[330427829,1719382242665,-600.0,0.00022989,2]
[330427830,1719382242675,-500.0,0.00022989,2]
[330427831,1719382242684,-2100.0,0.00022989,2]
[330427832,1719382242694,-239456.70587577,0.0002299,7]
[330427833,1719382242703,-600914.8591373,0.0002299,5]
[330427834,1719382242724,-1609233.6925487,0.0002299,5]
[330427836,1719382242737,-305.21294351,0.0002299,5]
[330427841,1719382243508,-817.47682962,0.00022051,2]
[330427842,1719382243521,-182.52317038,0.00022051,2]
[330427843,1719382243532,-155.0,0.00022874,2]
[330427845,1719382243542,-766.30912962,0.0002299,5]
[330427846,1719382243554,-406.24944498,0.0002299,5]
[330427847,1719382243567,-411.63357934,0.0002299,5]
[330427848,1719382243578,-7053.221239,0.0002299,5]
[330427850,1719382243590,-14447011.5339562,0.0002299,5]
[330427852,1719382243603,-639865.57390773,0.0002299,5]
[330427853,1719382243617,-142400.2474838,0.0002299,5]
[330427854,1719382243630,-5442.56114627,0.0002299,5]
[330427855,1719382243642,-137400.0,0.0002299,5]
[330427856,1719382243722,-1176.04846095,0.0002299,5]
[330427857,1719382243733,-643.65507974,0.0002299,5]
[330427858,1719382243746,-691.31999944,0.0002299,5]
[330427859,1719382243758,-250.0,0.0002299,5]
[330427860,1719382243770,-312.16935958,0.0002299,5]
[330427861,1719382244246,-298.31412405,0.00022041,2]
[330427862,1719382244258,-568.58886561,0.00022041,2]
[330427863,1719382244268,-155.0,0.00022882,2]
[330427864,1719382244278,-200.54500659,0.0002299,5]
[330427865,1719382244289,-1006.632,0.0002299,5]
[330427866,1719382244301,-2873.71452217,0.0002299,5]
[330427867,1719382244342,-284.54746564,0.0002299,5]
[330427868,1719382244354,-820.72343352,0.0002299,5]
[330427869,1719382244613,-3167.198499,0.000218,2]
[330427870,1719382244624,-1347.35802386,0.000218,2]
[330427871,1719382244636,-3792.97760677,0.000218,2]
[330427872,1719382244647,-15730.15287037,0.000218,2]
[330427873,1719382244657,-1209.369222,0.0002299,5]
[330427874,1719382244666,-178641.48904715,0.0002299,5]
[330427875,1719382244677,-11778.53769657,0.0002299,5]
[330427876,1719382244688,-812.31370672,0.0002299,5]
[330427877,1719382244700,-342.3,0.0002299,5]
[330427878,1719382244712,-6299.402726,0.0002299,5]
[330427879,1719382244723,-1333.60642354,0.0002299,5]
[330427880,1719382244734,-462.76124995,0.0002299,5]
[330427881,1719382244778,-4975.0199998,0.0002299,5]
[330427882,1719382244790,-187404.95085643,0.0002299,5]
[330427883,1719382244802,-2348.06516434,0.0002299,5]
[330427884,1719382244813,-1186.64880089,0.0002299,5]
[330427885,1719382244825,-4003.50300215,0.0002299,5]
[330427886,1719382244851,-845.50957208,0.0002299,5]
[330427887,1719382244863,-4223.88782054,0.0002299,5]
[330427888,1719382244874,-1803.24107835,0.0002299,5]
[330427889,1719382244885,-581.73178682,0.0002299,5]
[330427890,1719382244896,-378.42145,0.0002299,5]
[330427891,1719382244908,-2869.63799888,0.0002299,5]
[330427892,1719382244919,-4859.22515269,0.0002299,5]
[330427893,1719382244931,-1356.30670095,0.0002299,5]
[330427894,1719382244962,-13621.33321001,0.0002299,5]
[330427895,1719382244973,-453.999994,0.0002299,5]
[330427896,1719382244984,-2287.29628348,0.0002299,5]
[330427897,1719382244996,-1900.24289999,0.0002299,5]
[330427899,1719382246170,-687.57361666,0.0002299,5]
[330427900,1719382246182,-714.2364726,0.0002299,5]
[330427901,1719382246193,-4952.48764898,0.0002299,5]
[330427902,1719382246204,-468.68885309,0.0002299,5]
[330427903,1719382246216,-1517.8319108,0.0002299,5]
[330427904,1719382246989,-827.0,0.00022737,2]
[330427905,1719382246999,-150.01,0.00022988,2]
[330427906,1719382247010,-563.54,0.0002299,5]
[330427907,1719382247021,-8539.06885841,0.0002299,5]
[330427908,1719382247032,-8922.83961422,0.0002299,5]
[330427909,1719382247044,-3963.59598511,0.0002299,5]
[330427910,1719382247144,-569.64,0.0002299,5]
[330427911,1719382247156,-254.86173603,0.0002299,5]
[330427912,1719382247168,-21615.85428932,0.0002299,5]
[330427913,1719382247179,-272.53169942,0.0002299,5]
[330427914,1719382247191,-1708.64273095,0.0002299,5]
[330427915,1719382247203,-2564.02335288,0.0002299,5]
[330427916,1719382247215,-17849.13358637,0.0002299,5]
[330427917,1719382247226,-15700.756119,0.0002299,5]
[330427918,1719382247312,-325.95661418,0.0002299,5]
[330427931,1719382434442,1923.0,0.00026,120]
[330427937,1719383058520,2500.0,0.00025,60]
[330427939,1719383156083,520.0,0.000248,60]
[330427940,1719383180465,3992.03611857,0.00025,60]
[330427949,1719383433011,-300.0,0.00019119,2]
[330427950,1719383433024,-568.36,0.00019126,2]
[330427951,1719383433035,-300.0,0.00019296,2]
[330427952,1719383433044,-1000.0,0.00019413,2]
[330427953,1719383433053,-150.0,0.00019451,2]
[330427954,1719383433064,-150.0,0.00019451,2]
[330427955,1719383433075,-499.99,0.00019474,2]
[330427956,1719383433084,-1338.35,0.00019474,2]
[330427957,1719383433094,-150.99,0.00019474,2]
[330427958,1719383433104,-1798.48,0.00019474,2]
[330427959,1719383433113,-300.0,0.00019474,2]
[330427960,1719383433123,-1000.0,0.00019489,2]
[330427961,1719383433132,-1000.0,0.00019617,2]
[330427962,1719383433142,-37117.69,0.00019617,2]
[330427963,1719383433151,-300.0,0.00019651,2]
[330427964,1719383433161,-300.0,0.00019829,2]
[330427965,1719383433171,-250.0,0.00019841,2]
[330427966,1719383433180,-159.07,0.00019873,2]
[330427967,1719383433189,-169.38,0.00019913,2]
[330427969,1719383433199,-265.68,0.00019925,2]
[330427971,1719383433208,-2751.0,0.00019925,2]
[330427973,1719383433218,-333.73,0.00019927,2]
[330427975,1719383433227,-205.74,0.00019927,2]
[330427977,1719383433236,-600.0,0.00019946,2]
[330427979,1719383433246,-250.0,0.00019968,2]
[330427981,1719383433256,-442.52,0.00019969,2]
[330427983,1719383433266,-517.34538336,0.00020006,2]
[330427984,1719383433275,-152.63,0.00020068,2]
[330427985,1719383433285,-2055.52,0.000201,2]
[330427986,1719383433295,-152.63,0.00020123,2]
[330427987,1719383433304,-152.63,0.00020179,2]
[330427988,1719383433313,-2000.0,0.000202,2]
[330427989,1719383433322,-2000.0,0.0002021,2]
[330427990,1719383433332,-2000.0,0.0002022,2]
[330427991,1719383433341,-3889.883854,0.0002023,2]
[330427992,1719383433351,-152.63,0.00020234,2]
[330427993,1719383433360,-152.63,0.00020289,2]
[330427994,1719383433369,-152.63,0.00020344,2]
[330427995,1719383433379,-152.63,0.00020399,2]
[330427996,1719383433388,-152.63,0.00020454,2]
[330427997,1719383433397,-4057.0,0.000205,4]
[330427998,1719383433407,-152.63,0.00020509,2]
[330427999,1719383433417,-152.63,0.00020564,2]
[330428000,1719383433426,-152.63,0.00020619,2]
[330428001,1719383433436,-152.63,0.00020674,2]